[Event "Titled Tuesday Blitz January 31 Late 2023"]
[White "Suder, Jakub"]
[Black "Yoo, Christopher Woojin"]
[WhiteFideId "1195310"]
[BlackFideId "30909694"]
[WhiteElo "2244"]
[BlackElo "2607"]
[Result "1/2-1/2"]
[Round "02"]
[TimeControl "180+2"]
[Date "2023.01.31"]
[WhiteClock "0:00:14"]
[BlackClock "0:00:02"]

1. d4 {[%clk 0:02:56]}  Nf6 {[%clk 0:02:54]} 2. c4 {[%clk 0:02:56]}  e6 {[%clk 0:02:54]} 3. Nc3 {[%clk 0:02:57]}  d5 {[%clk 0:02:54]} 4. cxd5 {[%clk 0:02:56]}  exd5 {[%clk 0:02:55]} 5. Bg5 {[%clk 0:02:56]}  c6 {[%clk 0:02:55]} 6. e3 {[%clk 0:02:57]}  Be7 {[%clk 0:02:56]} 7. Bd3 {[%clk 0:02:57]}  O-O {[%clk 0:02:56]} 8. Nge2 {[%clk 0:02:57]}  Nbd7 {[%clk 0:02:57]} 9. Qc2 {[%clk 0:02:57]}  Re8 {[%clk 0:02:58]} 10. O-O {[%clk 0:02:57]}  Ne4 {[%clk 0:02:57]} 11. Bxe7 {[%clk 0:02:56]}  Qxe7 {[%clk 0:02:56]} 12. Bxe4 {[%clk 0:02:57]}  dxe4 {[%clk 0:02:56]} 13. Rfd1 {[%clk 0:02:56]}  Nf6 {[%clk 0:02:52]} 14. d5 {[%clk 0:02:56]}  Bg4 {[%clk 0:02:34]} 15. dxc6 {[%clk 0:02:52]}  bxc6 {[%clk 0:02:33]} 16. h3 {[%clk 0:02:52]}  Bh5 {[%clk 0:02:31]} 17. Rd2 {[%clk 0:02:51]}  Rad8 {[%clk 0:02:28]} 18. Rad1 {[%clk 0:02:46]}  Rxd2 {[%clk 0:02:18]} 19. Rxd2 {[%clk 0:02:46]}  Bxe2 {[%clk 0:02:01]} 20. Nxe2 {[%clk 0:02:43]}  c5 {[%clk 0:02:01]} 21. Nc3 {[%clk 0:02:37]}  Qe6 {[%clk 0:01:50]} 22. b3 {[%clk 0:02:12]}  c4 {[%clk 0:01:46]} 23. bxc4 {[%clk 0:02:10]}  Qxc4 {[%clk 0:01:45]} 24. Rd4 {[%clk 0:02:10]}  Qc6 {[%clk 0:01:45]} 25. Qd2 {[%clk 0:02:08]}  h6 {[%clk 0:01:43]} 26. Nd5 {[%clk 0:02:05]}  Nxd5 {[%clk 0:01:24]} 27. Rxd5 {[%clk 0:02:06]}  Qb6 {[%clk 0:01:25]} 28. Kh2 {[%clk 0:02:01]}  Re6 {[%clk 0:01:08]} 29. Rd7 {[%clk 0:01:50]}  Rf6 {[%clk 0:01:05]} 30. g3 {[%clk 0:01:30]}  Qb5 {[%clk 0:00:43]} 31. Kg2 {[%clk 0:01:27]}  a6 {[%clk 0:00:21]} 32. Rd8+ {[%clk 0:01:20]}  Kh7 {[%clk 0:00:21]} 33. Rd5 {[%clk 0:01:10]}  Qc4 {[%clk 0:00:17]} 34. Rd4 {[%clk 0:01:06]}  Qc6 {[%clk 0:00:17]} 35. Qe2 {[%clk 0:01:02]}  Re6 {[%clk 0:00:14]} 36. Qg4 {[%clk 0:01:01]}  g6 {[%clk 0:00:13]} 37. Qf4 {[%clk 0:01:00]}  Kg7 {[%clk 0:00:13]} 38. h4 {[%clk 0:00:58]}  Rf6 {[%clk 0:00:11]} 39. Qxe4 {[%clk 0:00:56]}  Qc3 {[%clk 0:00:10]} 40. Qd3 {[%clk 0:00:53]}  Qe1 {[%clk 0:00:08]} 41. Qd2 {[%clk 0:00:51]}  Qb1 {[%clk 0:00:09]} 42. a4 {[%clk 0:00:49]}  Rc6 {[%clk 0:00:06]} 43. Rf4 {[%clk 0:00:45]}  Qb7 {[%clk 0:00:03]} 44. Kh2 {[%clk 0:00:43]}  Re6 {[%clk 0:00:02]} 45. Qd4+ {[%clk 0:00:43]}  Kg8 {[%clk 0:00:02]} 46. Rf6 {[%clk 0:00:39]}  Rxf6 {[%clk 0:00:02]} 47. Qxf6 {[%clk 0:00:40]}  Kh7 {[%clk 0:00:01]} 48. a5 {[%clk 0:00:38]}  h5 {[%clk 0:00:02]} 49. Qb6 {[%clk 0:00:35]}  Qc8 {[%clk 0:00:02]} 50. Qf6 {[%clk 0:00:33]}  Qb7 {[%clk 0:00:02]} 51. Qd6 {[%clk 0:00:24]}  Kg8 {[%clk 0:00:02]} 52. Qd2 {[%clk 0:00:21]}  Kg7 {[%clk 0:00:02]} 53. Qd4+ {[%clk 0:00:20]}  Kg8 {[%clk 0:00:02]} 54. e4 {[%clk 0:00:21]}  Qc6 {[%clk 0:00:02]} 55. e5 {[%clk 0:00:19]}  Qb5 {[%clk 0:00:01]} 56. Qd8+ {[%clk 0:00:18]}  Kh7 {[%clk 0:00:02]} 57. e6 {[%clk 0:00:18]}  fxe6 {[%clk 0:00:02]} 58. Qe7+ {[%clk 0:00:18]}  Kg8 {[%clk 0:00:02]} 59. Qxe6+ {[%clk 0:00:18]}  Kg7 {[%clk 0:00:03]} 60. Qe7+ {[%clk 0:00:19]}  Kg8 {[%clk 0:00:04]} 61. Qd8+ {[%clk 0:00:19]}  Kf7 {[%clk 0:00:04]} 62. Qc7+ {[%clk 0:00:19]}  Kf6 {[%clk 0:00:04]} 63. Qb6+ {[%clk 0:00:19]}  Ke7 {[%clk 0:00:02]} 64. Qxg6 {[%clk 0:00:18]}  Qxa5 {[%clk 0:00:02]} 65. Qg7+ {[%clk 0:00:18]}  Ke8 {[%clk 0:00:02]} 66. Qg8+ {[%clk 0:00:18]}  Ke7 {[%clk 0:00:02]} 67. Qg7+ {[%clk 0:00:18]}  Ke8 {[%clk 0:00:03]} 68. Qg8+ {[%clk 0:00:18]}  Ke7 {[%clk 0:00:02]} 69. Qg7+ {[%clk 0:00:14]} 1/2-1/2


[Site "https://www.chess.com"]

[Event "Titled Tuesday Blitz January 31 Late 2023"]
[White "Kourkoulos-Arditis, Stamatis"]
[Black "Paravyan, David"]
[WhiteFideId "4221990"]
[BlackFideId "4194985"]
[WhiteElo "2539"]
[BlackElo "2601"]
[Result "0-1"]
[Round "02"]
[TimeControl "180+2"]
[Date "2023.01.31"]
[WhiteClock "0:00:02"]
[BlackClock "0:00:05"]

1. e4 {[%clk 0:02:56]}  e5 {[%clk 0:02:55]} 2. Nf3 {[%clk 0:02:55]}  Nf6 {[%clk 0:02:56]} 3. Nxe5 {[%clk 0:02:55]}  d6 {[%clk 0:02:56]} 4. Nf3 {[%clk 0:02:55]}  Nxe4 {[%clk 0:02:56]} 5. Bd3 {[%clk 0:02:56]}  d5 {[%clk 0:02:55]} 6. O-O {[%clk 0:02:56]}  Be7 {[%clk 0:02:55]} 7. Re1 {[%clk 0:02:56]}  O-O {[%clk 0:02:56]} 8. Bxe4 {[%clk 0:02:52]}  dxe4 {[%clk 0:02:57]} 9. Rxe4 {[%clk 0:02:53]}  c5 {[%clk 0:02:57]} 10. d3 {[%clk 0:02:51]}  Nc6 {[%clk 0:02:57]} 11. Nc3 {[%clk 0:02:50]}  b6 {[%clk 0:02:57]} 12. Re1 {[%clk 0:02:49]}  Bg4 {[%clk 0:02:56]} 13. h3 {[%clk 0:02:47]}  Bh5 {[%clk 0:02:56]} 14. Ne4 {[%clk 0:02:44]}  Qc7 {[%clk 0:02:43]} 15. Ng3 {[%clk 0:02:41]}  Bg6 {[%clk 0:02:41]} 16. Bd2 {[%clk 0:02:35]}  Rad8 {[%clk 0:02:40]} 17. b3 {[%clk 0:02:35]}  h6 {[%clk 0:02:18]} 18. Bc3 {[%clk 0:02:33]}  Rfe8 {[%clk 0:02:11]} 19. Qd2 {[%clk 0:02:07]}  Bd6 {[%clk 0:02:06]} 20. Rxe8+ {[%clk 0:02:05]}  Rxe8 {[%clk 0:02:07]} 21. Re1 {[%clk 0:02:05]}  Rxe1+ {[%clk 0:01:40]} 22. Qxe1 {[%clk 0:02:05]}  Nb4 {[%clk 0:01:29]} 23. Qe8+ {[%clk 0:01:02]}  Kh7 {[%clk 0:01:28]} 24. Ne5 {[%clk 0:01:02]}  Bxe5 {[%clk 0:00:52]} 25. Bxe5 {[%clk 0:01:01]}  Qb7 {[%clk 0:00:49]} 26. f4 {[%clk 0:00:10]}  f6 {[%clk 0:00:47]} 27. Qf8 {[%clk 0:00:11]}  Qd7 {[%clk 0:00:11]} 28. f5 {[%clk 0:00:05]}  Bxf5 {[%clk 0:00:12]} 29. Bxf6 {[%clk 0:00:05]}  gxf6 {[%clk 0:00:11]} 30. Nh5 {[%clk 0:00:05]}  Qd4+ {[%clk 0:00:03]} 31. Kh1 {[%clk 0:00:05]}  Kg6 {[%clk 0:00:04]} 32. Ng3 {[%clk 0:00:02]}  Be6 {[%clk 0:00:05]} 33. Qe7 {[%clk 0:00:02]}  Qa1+ {[%clk 0:00:04]} 34. Kh2 {[%clk 0:00:02]}  Qe5 {[%clk 0:00:05]} 35. Qe8+ {[%clk 0:00:02]}  Bf7 {[%clk 0:00:05]} 36. Qh8 {[%clk 0:00:03]}  Nd5 {[%clk 0:00:05]} 37. h4 {[%clk 0:00:03]}  Nf4 {[%clk 0:00:06]} 38. Qf8 {[%clk 0:00:02]}  Nh5 {[%clk 0:00:05]} 0-1


[Site "https://www.chess.com"]

[Event "Titled Tuesday Blitz January 31 Late 2023"]
[White "Zhigalko, Sergei"]
[Black "Atanasov, Anthony"]
[WhiteFideId "13502956"]
[BlackFideId "2623897"]
[WhiteElo "2572"]
[BlackElo "2368"]
[Result "1-0"]
[Round "02"]
[TimeControl "180+2"]
[Date "2023.01.31"]
[WhiteClock "0:01:30"]
[BlackClock "0:00:59"]

1. e4 {[%clk 0:03:00]}  e5 {[%clk 0:02:59]} 2. Nf3 {[%clk 0:03:01]}  Nf6 {[%clk 0:03:00]} 3. d4 {[%clk 0:03:00]}  Nxe4 {[%clk 0:03:00]} 4. Bd3 {[%clk 0:03:00]}  d5 {[%clk 0:03:00]} 5. Nxe5 {[%clk 0:03:00]}  Nd7 {[%clk 0:03:00]} 6. Nxd7 {[%clk 0:03:00]}  Bxd7 {[%clk 0:03:01]} 7. O-O {[%clk 0:03:01]}  Bd6 {[%clk 0:02:58]} 8. Nc3 {[%clk 0:03:00]}  Nxc3 {[%clk 0:02:52]} 9. bxc3 {[%clk 0:03:01]}  O-O {[%clk 0:02:53]} 10. Qh5 {[%clk 0:03:01]}  f5 {[%clk 0:02:53]} 11. Re1 {[%clk 0:03:00]}  Qf6 {[%clk 0:02:47]} 12. Qf3 {[%clk 0:03:00]}  c6 {[%clk 0:02:42]} 13. Bf4 {[%clk 0:03:00]}  Rae8 {[%clk 0:02:42]} 14. h4 {[%clk 0:03:00]}  Re7 {[%clk 0:02:21]} 15. Bg5 {[%clk 0:02:48]}  Rxe1+ {[%clk 0:02:14]} 16. Rxe1 {[%clk 0:02:49]}  Qf7 {[%clk 0:02:13]} 17. Bf4 {[%clk 0:02:49]}  Qf6 {[%clk 0:02:11]} 18. Qg3 {[%clk 0:02:47]}  Bxf4 {[%clk 0:01:57]} 19. Qxf4 {[%clk 0:02:48]}  Re8 {[%clk 0:01:46]} 20. Rxe8+ {[%clk 0:02:44]}  Bxe8 {[%clk 0:01:46]} 21. Qb8 {[%clk 0:02:12]}  Kf8 {[%clk 0:01:17]} 22. Qxb7 {[%clk 0:01:57]}  Qxh4 {[%clk 0:01:15]} 23. Qxa7 {[%clk 0:01:51]}  Qf4 {[%clk 0:01:08]} 24. a4 {[%clk 0:01:42]}  Qc1+ {[%clk 0:01:05]} 25. Bf1 {[%clk 0:01:42]}  Qxc2 {[%clk 0:01:06]} 26. a5 {[%clk 0:01:41]}  Qxc3 {[%clk 0:01:03]} 27. a6 {[%clk 0:01:31]}  Qa5 {[%clk 0:01:01]} 28. Qc5+ {[%clk 0:01:29]}  Qxc5 {[%clk 0:00:59]} 29. dxc5 {[%clk 0:01:30]} 1-0


[Site "https://www.chess.com"]

[Event "Titled Tuesday Blitz January 31 Late 2023"]
[White "Ivic, Velimir"]
[Black "Aldokhin, Ivan"]
[WhiteFideId "950122"]
[BlackFideId "24115720"]
[WhiteElo "2595"]
[BlackElo "2413"]
[Result "1-0"]
[Round "02"]
[TimeControl "180+2"]
[Date "2023.01.31"]
[WhiteClock "0:01:19"]
[BlackClock "0:00:06"]

1. d4 {[%clk 0:02:49]}  Nf6 {[%clk 0:02:59]} 2. c4 {[%clk 0:02:49]}  g6 {[%clk 0:03:00]} 3. g3 {[%clk 0:02:48]}  Bg7 {[%clk 0:03:01]} 4. Bg2 {[%clk 0:02:48]}  O-O {[%clk 0:03:02]} 5. Nf3 {[%clk 0:02:49]}  d6 {[%clk 0:03:02]} 6. O-O {[%clk 0:02:48]}  Nc6 {[%clk 0:03:03]} 7. Nc3 {[%clk 0:02:47]}  Bf5 {[%clk 0:03:03]} 8. b3 {[%clk 0:02:41]}  Ne4 {[%clk 0:03:02]} 9. Nd5 {[%clk 0:02:37]}  e6 {[%clk 0:02:36]} 10. Ne3 {[%clk 0:02:36]}  Nc3 {[%clk 0:02:06]} 11. Qd2 {[%clk 0:02:35]}  Ne4 {[%clk 0:02:04]} 12. Qb2 {[%clk 0:02:30]}  Nxd4 {[%clk 0:01:54]} 13. Nxd4 {[%clk 0:02:27]}  c5 {[%clk 0:01:55]} 14. Ndxf5 {[%clk 0:02:15]}  gxf5 {[%clk 0:01:22]} 15. Qb1 {[%clk 0:02:08]}  Nc3 {[%clk 0:01:20]} 16. Qc2 {[%clk 0:02:07]}  Nxe2+ {[%clk 0:01:20]} 17. Qxe2 {[%clk 0:02:08]}  Bxa1 {[%clk 0:01:20]} 18. Bxb7 {[%clk 0:02:06]}  Rb8 {[%clk 0:01:18]} 19. Bg2 {[%clk 0:02:07]}  Bg7 {[%clk 0:01:18]} 20. Bb2 {[%clk 0:02:02]}  Qg5 {[%clk 0:01:16]} 21. Bxg7 {[%clk 0:01:59]}  Qxg7 {[%clk 0:01:16]} 22. Rd1 {[%clk 0:01:59]}  Rfd8 {[%clk 0:01:16]} 23. Qd2 {[%clk 0:01:57]}  Rb4 {[%clk 0:01:07]} 24. Nc2 {[%clk 0:01:57]}  Rb6 {[%clk 0:01:06]} 25. Ne1 {[%clk 0:01:58]}  Qf6 {[%clk 0:00:39]} 26. Nd3 {[%clk 0:01:58]}  Re8 {[%clk 0:00:33]} 27. Nf4 {[%clk 0:01:58]}  Kf8 {[%clk 0:00:31]} 28. Qe2 {[%clk 0:01:54]}  Qe5 {[%clk 0:00:30]} 29. Qh5 {[%clk 0:01:54]}  Qg7 {[%clk 0:00:26]} 30. h3 {[%clk 0:01:49]}  h6 {[%clk 0:00:26]} 31. h4 {[%clk 0:01:46]}  Qf6 {[%clk 0:00:25]} 32. Qe2 {[%clk 0:01:43]}  a5 {[%clk 0:00:25]} 33. Qd2 {[%clk 0:01:40]}  a4 {[%clk 0:00:24]} 34. Qa5 {[%clk 0:01:41]}  Qd8 {[%clk 0:00:22]} 35. Qxa4 {[%clk 0:01:41]}  Rb4 {[%clk 0:00:18]} 36. Qa6 {[%clk 0:01:39]}  Qb6 {[%clk 0:00:18]} 37. Qa3 {[%clk 0:01:23]}  Rd8 {[%clk 0:00:13]} 38. Nd3 {[%clk 0:01:23]}  e5 {[%clk 0:00:09]} 39. Qc1 {[%clk 0:01:21]}  Kg7 {[%clk 0:00:08]} 40. Nxb4 {[%clk 0:01:21]}  cxb4 {[%clk 0:00:09]} 41. Qd2 {[%clk 0:01:18]}  Qc5 {[%clk 0:00:08]} 42. Qd5 {[%clk 0:01:18]}  Qxd5 {[%clk 0:00:08]} 43. Rxd5 {[%clk 0:01:19]}  Ra8 {[%clk 0:00:08]} 44. Rxd6 {[%clk 0:01:17]}  Rxa2 {[%clk 0:00:09]} 45. c5 {[%clk 0:01:18]}  e4 {[%clk 0:00:08]} 46. c6 {[%clk 0:01:18]}  Rc2 {[%clk 0:00:09]} 47. Bf1 {[%clk 0:01:19]}  Rc3 {[%clk 0:00:06]} 48. Bc4 {[%clk 0:01:19]} 1-0


[Site "https://www.chess.com"]

[Event "Titled Tuesday Blitz January 31 Late 2023"]
[White "Skvortsov, Andrei"]
[Black "Baskakov, Egor"]
[WhiteFideId "24108600"]
[BlackFideId "24197866"]
[WhiteElo "2313"]
[BlackElo "2215"]
[Result "1/2-1/2"]
[Round "02"]
[TimeControl "180+2"]
[Date "2023.01.31"]
[WhiteClock "0:02:57"]
[BlackClock "0:02:43"]

1. c4 {[%clk 0:03:00]}  Nf6 {[%clk 0:02:59]} 2. Nc3 {[%clk 0:03:01]}  e5 {[%clk 0:02:55]} 3. g3 {[%clk 0:03:01]}  Be7 {[%clk 0:02:54]} 4. Bg2 {[%clk 0:03:01]}  O-O {[%clk 0:02:54]} 5. e3 {[%clk 0:03:01]}  c6 {[%clk 0:02:51]} 6. Nge2 {[%clk 0:03:00]}  d5 {[%clk 0:02:52]} 7. cxd5 {[%clk 0:03:01]}  Nxd5 {[%clk 0:02:51]} 8. O-O {[%clk 0:03:01]}  Be6 {[%clk 0:02:51]} 9. d4 {[%clk 0:03:00]}  Nxc3 {[%clk 0:02:49]} 10. bxc3 {[%clk 0:02:59]}  Qc7 {[%clk 0:02:43]} 11. Bb2 {[%clk 0:02:57]} 1/2-1/2


[Site "https://www.chess.com"]

[Event "Titled Tuesday Blitz January 31 Late 2023"]
[White "Janaszak, Dawid"]
[Black "Kravtsiv, Martyn"]
[WhiteFideId "1119206"]
[BlackFideId "14113147"]
[WhiteElo "2316"]
[BlackElo "2598"]
[Result "0-1"]
[Round "02"]
[TimeControl "180+2"]
[Date "2023.01.31"]
[WhiteClock "0:00:02"]
[BlackClock "0:00:41"]

1. e4 {[%clk 0:03:00]}  e5 {[%clk 0:02:59]} 2. Nf3 {[%clk 0:03:00]}  Nc6 {[%clk 0:02:59]} 3. d4 {[%clk 0:03:01]}  exd4 {[%clk 0:02:58]} 4. Nxd4 {[%clk 0:03:02]}  Nf6 {[%clk 0:02:58]} 5. Nxc6 {[%clk 0:03:02]}  bxc6 {[%clk 0:02:57]} 6. e5 {[%clk 0:03:01]}  Qe7 {[%clk 0:02:57]} 7. Qe2 {[%clk 0:03:02]}  Nd5 {[%clk 0:02:57]} 8. h4 {[%clk 0:02:59]}  a5 {[%clk 0:02:56]} 9. c4 {[%clk 0:02:56]}  Ba6 {[%clk 0:02:52]} 10. g3 {[%clk 0:02:54]}  g6 {[%clk 0:02:35]} 11. h5 {[%clk 0:02:53]}  Bg7 {[%clk 0:02:34]} 12. f4 {[%clk 0:02:49]}  O-O-O {[%clk 0:02:24]} 13. h6 {[%clk 0:02:46]}  Bf8 {[%clk 0:02:22]} 14. Qd2 {[%clk 0:02:30]}  Nb6 {[%clk 0:02:17]} 15. Qxa5 {[%clk 0:02:29]}  Qb4+ {[%clk 0:02:05]} 16. Qxb4 {[%clk 0:02:29]}  Bxb4+ {[%clk 0:02:05]} 17. Bd2 {[%clk 0:02:29]}  Bc5 {[%clk 0:02:05]} 18. b3 {[%clk 0:02:17]}  d6 {[%clk 0:02:03]} 19. Nc3 {[%clk 0:02:06]}  dxe5 {[%clk 0:02:00]} 20. fxe5 {[%clk 0:02:07]}  Rhe8 {[%clk 0:01:51]} 21. O-O-O {[%clk 0:02:06]}  Rxe5 {[%clk 0:01:50]} 22. Bg2 {[%clk 0:01:52]}  Bb4 {[%clk 0:01:41]} 23. Ne4 {[%clk 0:01:41]}  Ba3+ {[%clk 0:01:22]} 24. Kc2 {[%clk 0:01:39]}  f5 {[%clk 0:01:22]} 25. Ng5 {[%clk 0:01:28]}  Re2 {[%clk 0:01:21]} 26. Bf3 {[%clk 0:01:26]}  Rf2 {[%clk 0:01:21]} 27. Kc3 {[%clk 0:00:27]}  Be7 {[%clk 0:01:17]} 28. Rhf1 {[%clk 0:00:09]}  Bf6+ {[%clk 0:01:13]} 29. Kb4 {[%clk 0:00:08]}  Rfxd2 {[%clk 0:01:03]} 30. Rxd2 {[%clk 0:00:08]}  Rxd2 {[%clk 0:01:03]} 31. Nxh7 {[%clk 0:00:08]}  Be7+ {[%clk 0:00:55]} 32. Kc3 {[%clk 0:00:08]}  Rh2 {[%clk 0:00:55]} 33. Bxc6 {[%clk 0:00:06]}  Rxh6 {[%clk 0:00:53]} 34. Re1 {[%clk 0:00:07]}  Rxh7 {[%clk 0:00:49]} 35. c5 {[%clk 0:00:03]}  Nd7 {[%clk 0:00:47]} 36. b4 {[%clk 0:00:02]}  Bb7 {[%clk 0:00:46]} 37. Bb5 {[%clk 0:00:01]}  Ne5 {[%clk 0:00:45]} 38. Bc4 {[%clk 0:00:02]}  Bf6 {[%clk 0:00:44]} 39. Kb3 {[%clk 0:00:02]}  Rh3 {[%clk 0:00:44]} 40. Be6+ {[%clk 0:00:02]}  Kb8 {[%clk 0:00:43]} 41. b5 {[%clk 0:00:03]}  Rxg3+ {[%clk 0:00:42]} 42. Ka4 {[%clk 0:00:04]}  Rg4+ {[%clk 0:00:42]} 43. Ka5 {[%clk 0:00:03]}  Nc6+ {[%clk 0:00:41]} 44. bxc6 {[%clk 0:00:03]}  Bc3+ {[%clk 0:00:42]} 45. Kb5 {[%clk 0:00:04]}  Rb4+ {[%clk 0:00:41]} 46. Ka5 {[%clk 0:00:02]}  Re4+ {[%clk 0:00:41]} 47. Kb5 {[%clk 0:00:02]}  Rxe1 {[%clk 0:00:41]} 0-1


[Site "https://www.chess.com"]

[Event "Titled Tuesday Blitz January 31 Late 2023"]
[White "Moroni, Luca Jr"]
[Black "Denishev, Marat"]
[WhiteFideId "865834"]
[BlackFideId "24131563"]
[WhiteElo "2535"]
[BlackElo "2255"]
[Result "1-0"]
[Round "02"]
[TimeControl "180+2"]
[Date "2023.01.31"]
[WhiteClock "0:00:07"]
[BlackClock "0:00:05"]

1. d4 {[%clk 0:03:00]}  Nf6 {[%clk 0:02:59]} 2. c4 {[%clk 0:03:00]}  c5 {[%clk 0:02:59]} 3. Nf3 {[%clk 0:03:00]}  g6 {[%clk 0:02:57]} 4. Nc3 {[%clk 0:02:59]}  Bg7 {[%clk 0:02:57]} 5. e4 {[%clk 0:02:59]}  cxd4 {[%clk 0:02:57]} 6. Nxd4 {[%clk 0:02:59]}  d6 {[%clk 0:02:58]} 7. Be2 {[%clk 0:02:59]}  O-O {[%clk 0:02:58]} 8. Be3 {[%clk 0:02:59]}  Nc6 {[%clk 0:02:58]} 9. O-O {[%clk 0:03:00]}  a5 {[%clk 0:02:56]} 10. h3 {[%clk 0:02:54]}  Nxd4 {[%clk 0:02:56]} 11. Bxd4 {[%clk 0:02:55]}  a4 {[%clk 0:02:54]} 12. Qc2 {[%clk 0:02:52]}  Qa5 {[%clk 0:02:53]} 13. f4 {[%clk 0:02:44]}  a3 {[%clk 0:02:16]} 14. b3 {[%clk 0:02:41]}  Bd7 {[%clk 0:01:56]} 15. Rad1 {[%clk 0:02:08]}  Rac8 {[%clk 0:01:50]} 16. e5 {[%clk 0:01:55]}  Ne8 {[%clk 0:01:31]} 17. Qe4 {[%clk 0:01:40]}  Bc6 {[%clk 0:01:23]} 18. Qe3 {[%clk 0:01:29]}  dxe5 {[%clk 0:01:17]} 19. Bxe5 {[%clk 0:01:27]}  Bxe5 {[%clk 0:01:13]} 20. fxe5 {[%clk 0:01:25]}  Nc7 {[%clk 0:01:13]} 21. Kh2 {[%clk 0:01:03]}  Rcd8 {[%clk 0:01:10]} 22. Bg4 {[%clk 0:00:53]}  Ne6 {[%clk 0:00:50]} 23. Bxe6 {[%clk 0:00:40]}  fxe6 {[%clk 0:00:51]} 24. Rxd8 {[%clk 0:00:33]}  Qxd8 {[%clk 0:00:51]} 25. Rxf8+ {[%clk 0:00:31]}  Qxf8 {[%clk 0:00:51]} 26. b4 {[%clk 0:00:25]}  Qf1 {[%clk 0:00:47]} 27. Qe2 {[%clk 0:00:14]}  Qf4+ {[%clk 0:00:34]} 28. g3 {[%clk 0:00:07]}  Qc1 {[%clk 0:00:28]} 29. Nd1 {[%clk 0:00:04]}  Qa1 {[%clk 0:00:23]} 30. b5 {[%clk 0:00:04]}  Be4 {[%clk 0:00:13]} 31. Qxe4 {[%clk 0:00:04]}  Qxd1 {[%clk 0:00:14]} 32. Qxb7 {[%clk 0:00:05]}  Qc2+ {[%clk 0:00:12]} 33. Qg2 {[%clk 0:00:06]}  Qxc4 {[%clk 0:00:12]} 34. b6 {[%clk 0:00:06]}  Qb4 {[%clk 0:00:12]} 35. b7 {[%clk 0:00:06]}  Kg7 {[%clk 0:00:13]} 36. h4 {[%clk 0:00:07]}  h5 {[%clk 0:00:13]} 37. Qf3 {[%clk 0:00:07]}  Qb2+ {[%clk 0:00:13]} 38. Kh3 {[%clk 0:00:08]}  Qb1 {[%clk 0:00:12]} 39. Qg2 {[%clk 0:00:05]}  Qb5 {[%clk 0:00:09]} 40. g4 {[%clk 0:00:04]}  Qd3+ {[%clk 0:00:08]} 41. Qg3 {[%clk 0:00:02]}  Qf1+ {[%clk 0:00:06]} 42. Kh2 {[%clk 0:00:02]}  Qb5 {[%clk 0:00:05]} 43. Qg2 {[%clk 0:00:02]}  hxg4 {[%clk 0:00:05]} 44. Kg3 {[%clk 0:00:02]}  Qxe5+ {[%clk 0:00:04]} 45. Kxg4 {[%clk 0:00:03]}  Kh6 {[%clk 0:00:04]} 46. Qf3 {[%clk 0:00:03]}  Qb8 {[%clk 0:00:03]} 47. Kh3 {[%clk 0:00:03]}  Kg7 {[%clk 0:00:03]} 48. Kg4 {[%clk 0:00:03]}  e5 {[%clk 0:00:03]} 49. Qe4 {[%clk 0:00:03]}  Kf6 {[%clk 0:00:03]} 50. Qc6+ {[%clk 0:00:03]}  Kg7 {[%clk 0:00:03]} 51. Kf3 {[%clk 0:00:04]}  e4+ {[%clk 0:00:03]} 52. Kxe4 {[%clk 0:00:04]}  Qh2 {[%clk 0:00:04]} 53. Qc3+ {[%clk 0:00:04]}  Kh7 {[%clk 0:00:04]} 54. Qf3 {[%clk 0:00:04]}  Qxh4+ {[%clk 0:00:04]} 55. Qf4 {[%clk 0:00:04]}  Qe1+ {[%clk 0:00:04]} 56. Kd5 {[%clk 0:00:03]}  Qa5+ {[%clk 0:00:03]} 57. Kc6 {[%clk 0:00:03]}  Qa6+ {[%clk 0:00:03]} 58. Kc7 {[%clk 0:00:03]}  Qa5+ {[%clk 0:00:04]} 59. Kd7 {[%clk 0:00:04]}  Qb5+ {[%clk 0:00:04]} 60. Kc8 {[%clk 0:00:04]}  Qc6+ {[%clk 0:00:04]} 61. Qc7 {[%clk 0:00:04]}  Qe8+ {[%clk 0:00:04]} 62. Qd8 {[%clk 0:00:05]}  Qc6+ {[%clk 0:00:05]} 63. Kb8 {[%clk 0:00:05]}  g5 {[%clk 0:00:05]} 64. Qxe7+ {[%clk 0:00:05]}  Kh6 {[%clk 0:00:06]} 65. Qc7 {[%clk 0:00:06]}  Qe8+ {[%clk 0:00:06]} 66. Ka7 {[%clk 0:00:06]}  Qa4+ {[%clk 0:00:06]} 67. Kb6 {[%clk 0:00:06]}  Qb4+ {[%clk 0:00:06]} 68. Ka6 {[%clk 0:00:07]}  Qa4+ {[%clk 0:00:06]} 69. Qa5 {[%clk 0:00:07]}  Qc4+ {[%clk 0:00:06]} 70. Qb5 {[%clk 0:00:07]}  Qxa2 {[%clk 0:00:04]} 71. b8=Q {[%clk 0:00:07]}  Qe6+ {[%clk 0:00:05]} 72. Q8b6 {[%clk 0:00:07]} 1-0


[Site "https://www.chess.com"]

[Event "Titled Tuesday Blitz January 31 Late 2023"]
[White "Golding, Alex"]
[Black "Urazayev, Arystanbek"]
[WhiteFideId "427241"]
[BlackFideId "13709810"]
[WhiteElo "2318"]
[BlackElo "2460"]
[Result "0-1"]
[Round "02"]
[TimeControl "180+2"]
[Date "2023.01.31"]
[WhiteClock "0:00:01"]
[BlackClock "0:00:50"]

1. e4 {[%clk 0:03:00]}  e6 {[%clk 0:03:00]} 2. d3 {[%clk 0:02:59]}  d5 {[%clk 0:03:00]} 3. Nd2 {[%clk 0:03:00]}  c5 {[%clk 0:03:00]} 4. Ngf3 {[%clk 0:02:59]}  Nc6 {[%clk 0:03:01]} 5. g3 {[%clk 0:02:58]}  Nf6 {[%clk 0:03:02]} 6. Bg2 {[%clk 0:02:58]}  Be7 {[%clk 0:03:02]} 7. O-O {[%clk 0:02:57]}  O-O {[%clk 0:03:03]} 8. Re1 {[%clk 0:02:54]}  b5 {[%clk 0:03:03]} 9. e5 {[%clk 0:02:53]}  Nd7 {[%clk 0:03:03]} 10. Nf1 {[%clk 0:02:52]}  Qc7 {[%clk 0:03:04]} 11. Bf4 {[%clk 0:02:52]}  Bb7 {[%clk 0:03:04]} 12. h4 {[%clk 0:02:51]}  Rfc8 {[%clk 0:03:04]} 13. N1h2 {[%clk 0:02:45]}  Qd8 {[%clk 0:03:04]} 14. Ng5 {[%clk 0:02:40]}  h6 {[%clk 0:03:01]} 15. Nxe6 {[%clk 0:02:18]}  fxe6 {[%clk 0:03:01]} 16. Qg4 {[%clk 0:02:19]}  Nd4 {[%clk 0:02:43]} 17. Bxh6 {[%clk 0:01:53]}  Qf8 {[%clk 0:02:43]} 18. c3 {[%clk 0:01:48]}  Nc2 {[%clk 0:02:39]} 19. Qxe6+ {[%clk 0:01:46]}  Kh8 {[%clk 0:02:21]} 20. Qxd7 {[%clk 0:01:39]}  Bc6 {[%clk 0:02:13]} 21. Bxg7+ {[%clk 0:01:26]}  Qxg7 {[%clk 0:02:13]} 22. Qe6 {[%clk 0:01:20]}  Nxa1 {[%clk 0:02:11]} 23. Rxa1 {[%clk 0:01:20]}  Rc7 {[%clk 0:01:47]} 24. Ng4 {[%clk 0:01:05]}  Bd7 {[%clk 0:01:41]} 25. Qxd5 {[%clk 0:01:01]}  Bc6 {[%clk 0:01:42]} 26. Qe6 {[%clk 0:00:53]}  Bxg2 {[%clk 0:01:41]} 27. Kxg2 {[%clk 0:00:54]}  Rd8 {[%clk 0:01:34]} 28. Qf5 {[%clk 0:00:41]}  Qh7 {[%clk 0:01:33]} 29. Qxh7+ {[%clk 0:00:35]}  Kxh7 {[%clk 0:01:33]} 30. Rd1 {[%clk 0:00:36]}  Rcd7 {[%clk 0:01:32]} 31. f4 {[%clk 0:00:23]}  Rxd3 {[%clk 0:01:31]} 32. Re1 {[%clk 0:00:18]}  Rd2+ {[%clk 0:01:31]} 33. Kh3 {[%clk 0:00:19]}  Rd1 {[%clk 0:01:25]} 34. Re4 {[%clk 0:00:15]}  R8d2 {[%clk 0:01:22]} 35. Ne3 {[%clk 0:00:15]}  Re1 {[%clk 0:01:21]} 36. Kg4 {[%clk 0:00:15]}  Rde2 {[%clk 0:01:18]} 37. Kf3 {[%clk 0:00:15]}  c4 {[%clk 0:01:19]} 38. f5 {[%clk 0:00:15]}  Bc5 {[%clk 0:01:19]} 39. Ng4 {[%clk 0:00:07]}  Rxe4 {[%clk 0:01:08]} 40. Nf6+ {[%clk 0:00:08]}  Kg7 {[%clk 0:00:54]} 41. Nxe4 {[%clk 0:00:09]}  Bb6 {[%clk 0:00:54]} 42. g4 {[%clk 0:00:07]}  Rf1+ {[%clk 0:00:52]} 43. Kg3 {[%clk 0:00:06]}  Be3 {[%clk 0:00:51]} 44. g5 {[%clk 0:00:06]}  Bf4+ {[%clk 0:00:50]} 45. Kg2 {[%clk 0:00:05]}  Re1 {[%clk 0:00:51]} 46. f6+ {[%clk 0:00:03]}  Kg6 {[%clk 0:00:51]} 47. Kf3 {[%clk 0:00:01]}  Bxe5 {[%clk 0:00:51]} 48. Nf2 {[%clk 0:00:01]}  Bxf6 {[%clk 0:00:49]} 49. gxf6 {[%clk 0:00:01]}  Kxf6 {[%clk 0:00:50]} 50. Ne4+ {[%clk 0:00:01]}  Ke5 {[%clk 0:00:50]} 51. Nd6 {[%clk 0:00:01]}  Kxd6 {[%clk 0:00:50]} 0-1


[Site "https://www.chess.com"]